bitfinex-derivatives/quotes_BTCF0:USTF0_20250811
["timestamp","ask_amount","ask_price","bid_price","bid_amount"]
[1754926543935,0.88782356,120400.0,120390.0,1.06225173]
[1754926544437,0.15008836,120400.0,120390.0,1.06225173]
[1754926545035,0.96988836,120400.0,120390.0,1.06225173]
[1754926545230,0.15008836,120400.0,120390.0,0.6813217]
[1754926545434,0.96960836,120400.0,120390.0,0.6813217]
[1754926545638,0.96960836,120400.0,120390.0,0.3205217]
[1754926545839,0.15008836,120400.0,120390.0,0.70145173]
[1754926546133,0.88650356,120400.0,120390.0,1.06225173]
[1754926546734,0.88650356,120400.0,120390.0,0.6813217]
[1754926546934,0.88650356,120400.0,120390.0,1.06225173]
[1754926547137,0.96956836,120400.0,120390.0,1.06225173]
[1754926547737,0.96956836,120400.0,120390.0,0.70145173]
[1754926547937,0.88650356,120400.0,120390.0,1.06225173]
[1754926548242,0.88634356,120400.0,120390.0,1.06225173]
[1754926548539,0.06702356,120400.0,120390.0,1.06225173]
[1754926548940,0.88502356,120400.0,120390.0,0.6813217]
[1754926549137,0.88502356,120400.0,120390.0,1.06225173]
[1754926549834,0.06702356,120400.0,120390.0,1.06225173]
[1754926550537,1.14918,120410.0,120390.0,1.06225173]
[1754926550737,0.2729354,120430.0,120420.0,0.083051]
[1754926550933,1.11122044,120430.0,120420.0,0.170901]
[1754926551334,1.11122044,120430.0,120420.0,0.208501]
[1754926551534,1.06045124,120430.0,120420.0,0.208501]
[1754926551943,0.97740484,120430.0,120420.0,0.68933103]
[1754926552242,0.97740484,120430.0,120420.0,0.308501]
[1754926552440,0.97740484,120430.0,120420.0,0.68943103]
[1754926552634,1.06044894,120430.0,120420.0,0.308501]
[1754926552834,1.06044894,120430.0,120420.0,0.68943103]
[1754926553133,0.24332894,120430.0,120420.0,0.68943103]
[1754926553334,1.06008894,120430.0,120420.0,0.68943103]
[1754926553643,0.97704484,120430.0,120420.0,0.69243103]
[1754926553845,0.16028484,120430.0,120420.0,0.69243103]
[1754926554044,0.16865278,120430.0,120420.0,1.05323103]
[1754926554341,0.95253484,120430.0,120420.0,1.05323103]
[1754926554643,0.97632484,120430.0,120420.0,1.05723103]
[1754926554844,0.95253484,120430.0,120420.0,1.05723103]
[1754926555336,0.95217484,120430.0,120420.0,0.68446411]
[1754926555543,0.95225484,120430.0,120420.0,1.06739414]
[1754926555743,0.81576,120430.0,120420.0,1.05923103]
[1754926556340,0.81576,120430.0,120420.0,1.0674016]
[1754926556641,0.81574,120440.0,120430.0,0.0830441]
[1754926556839,0.03238,120450.0,120440.0,0.0830372]
[1754926557040,1.6754729,120460.0,120440.0,1.11638733]
[1754926557244,1.6162362,120460.0,120450.0,0.53993033]
[1754926557434,1.6161362,120460.0,120450.0,0.2085803]
[1754926557639,2.4434162,120460.0,120450.0,0.2085803]
[1754926557835,1.6484162,120460.0,120450.0,0.58951033]
[1754926558037,2.4762562,120460.0,120450.0,0.58951033]
[1754926558543,2.1154562,120460.0,120450.0,0.69641033]
[1754926558948,2.18305705,120460.0,120450.0,0.69641033]
[1754926559450,2.18305705,120460.0,120450.0,0.70141033]
[1754926559750,2.19144323,120460.0,120450.0,0.70141033]
[1754926560137,2.19144323,120460.0,120450.0,0.3204803]
[1754926560348,2.19144323,120460.0,120450.0,0.70141033]
[1754926560740,1.28057703,120460.0,120450.0,0.6812803]
[1754926560939,2.19212043,120460.0,120450.0,1.06221033]
[1754926561146,2.19212043,120460.0,120450.0,0.6812803]
[1754926561444,1.36360043,120460.0,120450.0,0.3204803]
[1754926561639,2.19460043,120460.0,120450.0,0.70141033]
[1754926561844,2.19460043,120460.0,120450.0,0.3204803]
[1754926562045,2.19560043,120460.0,120450.0,0.3204803]
[1754926562243,2.19560043,120460.0,120450.0,0.70141033]
[1754926562649,1.36360043,120460.0,120450.0,0.70141033]
[1754926562846,2.05650703,120460.0,120450.0,0.70141033]
[1754926563051,2.08345085,120460.0,120450.0,1.06221033]
[1754926563649,2.08345085,120460.0,120450.0,0.6812803]
[1754926563950,2.08333085,120460.0,120450.0,1.06221033]
[1754926564444,2.08333085,120460.0,120450.0,0.6762803]
[1754926564648,2.18995425,120460.0,120450.0,1.05021033]
[1754926564842,2.19003425,120460.0,120450.0,0.3084803]
[1754926565041,2.55079425,120460.0,120450.0,0.1830303]
[1754926565242,2.55099425,120460.0,120450.0,0.1]
[1754926565447,1.71743425,120460.0,120450.0,0.1]
[1754926565650,2.55115425,120460.0,120450.0,0.1]
[1754926565851,2.55091425,120460.0,120450.0,0.1]
[1754926566043,1.71743425,120460.0,120450.0,0.1]
[1754926566243,2.55071425,120460.0,120450.0,0.1830303]
[1754926566442,1.71743425,120460.0,120450.0,0.1]
[1754926566643,2.10668294,120460.0,120450.0,0.1]
[1754926566842,2.10668294,120460.0,120450.0,0.04031]
[1754926566843,2.27416807,120460.0,120450.0,0.04031]
[1754926567046,2.72611804,120460.0,120450.0,0.04031]
[1754926567243,2.27416807,120460.0,120450.0,0.04031]
[1754926567652,3.10664807,120460.0,120450.0,0.04031]
[1754926567843,2.27416807,120460.0,120450.0,0.04031]
[1754926568039,3.10652807,120460.0,120450.0,0.04041]
[1754926568240,2.27416807,120460.0,120450.0,0.04041]
[1754926568446,2.72543804,120460.0,120450.0,0.04041]
[1754926568845,3.10636807,120460.0,120450.0,0.04041]
[1754926569041,1.89323804,120460.0,120450.0,0.04041]
[1754926569243,3.10620807,120460.0,120450.0,0.04041]
[1754926569749,2.27416807,120460.0,120450.0,0.04041]
[1754926569950,2.27416807,120460.0,120410.0,0.6433276]
[1754926569951,0.083051,120420.0,120410.0,0.6433276]
[1754926570245,0.083051,120420.0,120410.0,0.75344763]
[1754926570453,0.915971,120420.0,120410.0,0.75344763]
[1754926570650,0.083051,120420.0,120410.0,0.75344763]
[1754926570860,0.083051,120420.0,120410.0,0.3725176]
[1754926571045,0.083051,120420.0,120410.0,0.75344763]
[1754926571247,0.915491,120420.0,120410.0,0.75354763]
[1754926571553,0.083051,120420.0,120410.0,0.3726176]
[1754926571751,0.915491,120420.0,120410.0,0.75454763]
[1754926572257,0.6100472,120430.0,120420.0,0.083051]
[1754926572554,0.9978573,120430.0,120420.0,0.58743103]
[1754926573958,0.0830474,120430.0,120420.0,0.58743103]
[1754926574259,0.71009035,120440.0,120430.0,0.0830441]
[1754926574459,1.54183035,120440.0,120430.0,0.2064941]
[1754926574762,1.45978725,120440.0,120430.0,0.1731341]
[1754926574962,0.62694725,120440.0,120430.0,0.1067341]
[1754926575267,1.45958725,120440.0,120430.0,0.1067341]
[1754926575454,0.62694725,120440.0,120430.0,0.1067341]
[1754926575655,0.62694725,120440.0,120430.0,0.1704041]
[1754926575857,1.45914725,120440.0,120430.0,0.2064941]
[1754926576263,0.62694725,120440.0,120430.0,0.2064941]
[1754926576562,1.45914725,120440.0,120430.0,0.2064941]
[1754926576960,1.45914725,120440.0,120430.0,0.1548041]
[1754926577161,1.45914725,120440.0,120430.0,0.2064941]
[1754926577555,1.45914725,120440.0,120430.0,0.1548041]
[1754926577956,1.45914725,120440.0,120430.0,0.07176]
[1754926578156,1.00787728,120440.0,120430.0,0.03567]
[1754926578360,1.84071728,120440.0,120430.0,0.02369]
[1754926578659,1.45978725,120440.0,120430.0,0.1067341]
[1754926578861,1.45898725,120440.0,120430.0,0.1067341]
[1754926579058,0.62694725,120440.0,120430.0,0.1067341]
[1754926579257,0.62694725,120440.0,120430.0,0.46407413]
[1754926579559,0.46086365,120440.0,120430.0,0.57235413]
[1754926579762,1.29234365,120440.0,120430.0,0.57235413]
[1754926580363,1.2753178,120440.0,120430.0,0.57235413]
[1754926580563,0.4438378,120440.0,120430.0,0.57235413]
[1754926580765,1.2747178,120440.0,120430.0,0.57235413]
[1754926581264,0.4438378,120440.0,120430.0,0.57235413]
[1754926581859,1.2740378,120440.0,120430.0,0.1914241]
[1754926582273,1.2740378,120440.0,120430.0,0.57235413]
[1754926582671,0.82476783,120440.0,120430.0,0.02369]
[1754926582961,2.03869786,120440.0,120430.0,0.0001]
[1754926583169,1.20569786,120440.0,120430.0,0.0001]
[1754926583364,1.37176186,120440.0,120430.0,0.0001]
[1754926583555,0.99083183,120440.0,120430.0,0.0001]
[1754926583961,1.82543183,120440.0,120430.0,0.0001]
[1754926584163,0.6099018,120440.0,120430.0,0.0001]
[1754926584765,1.4439818,120440.0,120430.0,0.0001]
[1754926585167,0.6099018,120440.0,120430.0,0.1]
[1754926585366,1.4437018,120440.0,120430.0,0.1]
[1754926585675,0.6099018,120440.0,120430.0,0.1]
[1754926585868,1.05443842,120440.0,120430.0,0.1]
[1754926586166,1.4432218,120440.0,120430.0,0.1]
[1754926587069,0.6099018,120440.0,120430.0,0.1]
[1754926587266,1.4425018,120440.0,120430.0,0.1]
[1754926587766,1.2764378,120440.0,120430.0,0.1]
[1754926588462,1.72097442,120440.0,120430.0,0.1]
[1754926588668,1.2764378,120440.0,120430.0,0.1]
[1754926589072,1.2764378,120440.0,120430.0,0.18618]
[1754926589267,0.4438378,120440.0,120430.0,0.1]
[1754926589473,1.2750778,120440.0,120430.0,0.1]
[1754926590171,1.71961442,120440.0,120430.0,0.1]
[1754926590368,0.88837442,120440.0,120430.0,0.1]
[1754926590567,1.71893442,120440.0,120430.0,0.1]
[1754926590770,1.2743978,120440.0,120430.0,0.1]
[1754926591568,0.4438378,120440.0,120430.0,0.1]
[1754926591769,1.71841442,120440.0,120430.0,0.1]
[1754926592069,1.05443842,120440.0,120430.0,0.03253686]
[1754926592368,1.05443842,120440.0,120430.0,0.00051356]
[1754926592573,0.0830722,120390.0,120380.0,0.05313]
[1754926592775,0.9126722,120390.0,120380.0,0.1692591]
[1754926592975,0.0830722,120390.0,120380.0,0.1692591]
[1754926593175,0.6101079,120400.0,120380.0,0.78004912]
[1754926593384,0.8304,120390.0,120380.0,1.00464002]
[1754926593874,0.0831666,120400.0,120390.0,0.0830722]
[1754926594075,0.9132666,120400.0,120390.0,0.1693522]
[1754926594374,0.9132666,120400.0,120390.0,0.61388882]
[1754926594375,0.92156583,120400.0,120390.0,0.61388882]
[1754926594767,0.0830666,120400.0,120390.0,0.61388882]
[1754926594973,0.9137866,120400.0,120390.0,0.61388882]
[1754926595273,0.9147866,120400.0,120390.0,0.1693522]
[1754926595474,0.9147866,120400.0,120390.0,0.97468882]
[1754926596073,0.9147866,120400.0,120390.0,0.08628]
[1754926596468,0.92318782,120400.0,120390.0,0.08628]
[1754926596674,1.28498782,120400.0,120390.0,0.08628]
[1754926598474,1.28498782,120400.0,120390.0,0.05139]
[1754926598676,1.28438782,120400.0,120390.0,0.0001]
[1754926599065,1.3013198,120400.0,120390.0,0.0001]
[1754926599480,1.3013198,120400.0,120390.0,0.06463]
[1754926599777,1.74585642,120400.0,120390.0,0.0001]
[1754926600173,1.3013198,120400.0,120390.0,0.0001]
[1754926600373,1.3003998,120400.0,120390.0,0.0945722]
[1754926600573,1.3003998,120400.0,120390.0,0.53081662]
[1754926600781,0.9395998,120400.0,120390.0,0.61388882]
[1754926600975,0.1103998,120400.0,120390.0,0.1693522]
[1754926601175,0.0850666,120400.0,120390.0,0.61388882]
[1754926601477,0.9141866,120400.0,120390.0,0.61388882]
[1754926601674,0.83112,120400.0,120390.0,0.61388882]
[1754926601881,0.9143053,120400.0,120390.0,0.97468882]
[1754926602178,0.83124,120400.0,120390.0,0.97468882]
[1754926602769,0.002,120400.0,120390.0,0.97468882]
[1754926602976,0.83064,120400.0,120390.0,1.03198882]
[1754926603275,0.002,120400.0,120390.0,1.03198882]
[1754926603476,0.0850653,120400.0,120390.0,1.03198882]
[1754926603678,0.9135053,120400.0,120390.0,1.03198882]
[1754926603879,0.002,120400.0,120390.0,1.03198882]
[1754926604067,0.83024,120400.0,120390.0,1.03198882]
[1754926604273,0.82996,120400.0,120390.0,1.03198882]
[1754926604672,0.9130253,120400.0,120390.0,1.03198882]
[1754926604874,0.9131853,120400.0,120390.0,0.67118882]
[1754926605079,0.0850653,120400.0,120390.0,0.67118882]
[1754926605275,0.9125853,120400.0,120390.0,0.67118882]
[1754926605873,0.4458653,120400.0,120390.0,0.09045]
[1754926606182,1.33493854,120400.0,120390.0,0.0574]
[1754926606376,1.50105854,120400.0,120390.0,0.0574]
[1754926606774,2.32837854,120400.0,120390.0,0.0574]
[1754926606976,1.50105854,120400.0,120390.0,0.0574]
[1754926607280,0.0830929,120360.0,120350.0,0.05321138]
[1754926607582,0.4438929,120360.0,120350.0,8.138e-05]
[1754926607774,0.0830998,120350.0,120340.0,0.1362367]
[1754926607974,0.0830998,120350.0,120340.0,0.1692867]
[1754926608176,0.0830998,120350.0,120340.0,0.1807867]
[1754926608783,0.9097398,120350.0,120340.0,0.1807867]
[1754926609385,0.9097398,120350.0,120340.0,0.1837867]
[1754926610683,1.2705398,120350.0,120340.0,0.10068]
[1754926610982,1.2706598,120350.0,120340.0,0.0145]
[1754926611282,0.4438998,120350.0,120340.0,0.0145]
[1754926611488,1.2706598,120350.0,120340.0,0.0145]
[1754926611681,1.2706598,120350.0,120340.0,0.0115]
[1754926611875,1.2716598,120350.0,120340.0,0.0115]
[1754926612387,1.34571694,120350.0,120340.0,0.0115]
[1754926612586,0.51895694,120350.0,120340.0,0.0115]
[1754926612783,0.96349356,120350.0,120340.0,0.0115]
[1754926613383,1.78909356,120350.0,120340.0,0.0115]
[1754926613584,0.96349356,120350.0,120340.0,0.0115]
[1754926613789,0.51895694,120350.0,120340.0,0.0115]
[1754926613984,0.96349356,120350.0,120340.0,0.0115]
[1754926614185,1.79077356,120350.0,120340.0,0.0115]
[1754926614388,0.96349356,120350.0,120340.0,0.0115]
[1754926615190,1.79065356,120350.0,120340.0,0.0115]
[1754926615484,0.96349356,120350.0,120340.0,0.0115]
[1754926615892,1.79013356,120350.0,120340.0,0.0115]
[1754926616881,1.34559694,120350.0,120340.0,0.0115]
[1754926617686,0.51895694,120350.0,120340.0,0.0115]
[1754926617891,1.34559694,120350.0,120340.0,0.0115]
[1754926618586,0.96349356,120350.0,120340.0,0.0115]
[1754926618891,0.51895694,120350.0,120340.0,0.0115]
[1754926619092,1.34411694,120350.0,120340.0,0.0115]
[1754926619292,1.78865356,120350.0,120340.0,0.0115]
[1754926619481,0.96349356,120350.0,120340.0,0.0115]
[1754926619687,0.51895694,120350.0,120340.0,0.09642]
[1754926619883,0.51895694,120350.0,120340.0,0.1795267]
[1754926620488,1.34407694,120350.0,120340.0,0.0115]
[1754926620693,0.51895694,120350.0,120340.0,0.0115]
[1754926620888,0.96349356,120350.0,120340.0,0.0115]
[1754926621089,1.34503694,120350.0,120340.0,0.0115]
[1754926621297,0.96349356,120350.0,120340.0,0.0115]
[1754926621497,1.79097356,120350.0,120340.0,0.0115]
[1754926622189,0.96349356,120350.0,120340.0,0.0115]
[1754926622593,1.79073356,120350.0,120340.0,0.0115]
[1754926623286,0.96349356,120350.0,120340.0,0.0115]
[1754926623491,1.79097356,120350.0,120340.0,0.0115]
[1754926623697,0.96349356,120350.0,120340.0,0.0115]
[1754926624094,0.51895694,120350.0,120340.0,0.0115]
[1754926624398,1.79109356,120350.0,120340.0,0.0115]
[1754926624598,0.51895694,120350.0,120340.0,0.0115]
[1754926624891,1.34635694,120350.0,120340.0,0.0115]
[1754926625297,0.51895694,120350.0,120340.0,0.0115]
[1754926625498,1.34615694,120350.0,120340.0,0.0115]
[1754926625791,1.34575694,120350.0,120340.0,0.0115]
[1754926625992,0.51895694,120350.0,120340.0,0.0115]
[1754926626297,0.51895694,120350.0,120340.0,0.62406352]
[1754926626697,0.51060149,120350.0,120340.0,0.62406352]
[1754926626991,1.34515273,120350.0,120340.0,0.62406352]
[1754926627197,0.51887273,120350.0,120340.0,0.1795269]
[1754926627386,1.33688169,120350.0,120340.0,0.1795269]
[1754926627587,1.25514169,120350.0,120340.0,0.1795269]
[1754926627794,0.89438169,120350.0,120340.0,0.62406352]
[1754926627995,0.06670169,120350.0,120340.0,0.62406352]
[1754926628195,0.06670169,120350.0,120340.0,0.98486352]
[1754926628394,0.89442169,120350.0,120340.0,0.98486352]
[1754926628786,0.89430169,120350.0,120340.0,0.98486352]
[1754926628986,0.89406169,120350.0,120340.0,0.98486352]
[1754926629495,0.89374169,120350.0,120340.0,0.98486352]
[1754926629704,0.06670169,120350.0,120340.0,0.98486352]
[1754926629887,0.89342169,120350.0,120340.0,0.98486352]
[1754926630389,0.89342169,120350.0,120340.0,0.5403269]
[1754926630390,0.06670169,120350.0,120340.0,0.5403269]
[1754926630593,0.06670169,120350.0,120340.0,1.15105552]
[1754926630794,0.06570169,120350.0,120340.0,1.15105552]
[1754926630994,0.9143134,120360.0,120350.0,0.0831]
[1754926631200,0.9142134,120360.0,120350.0,0.92364662]
[1754926631400,0.9151734,120360.0,120350.0,0.97335662]
[1754926631899,0.9147734,120360.0,120350.0,0.97335662]
[1754926632402,0.9147734,120360.0,120350.0,1.07325662]
[1754926632696,0.0830934,120360.0,120350.0,1.07325662]
[1754926632902,0.9150534,120360.0,120350.0,1.07325662]
[1754926633099,0.0830934,120360.0,120350.0,0.62872]
[1754926633296,0.9146934,120360.0,120350.0,1.07325662]
[1754926633898,0.3324665,120370.0,120360.0,0.0830931]
[1754926634203,1.1636865,120370.0,120360.0,0.1680131]
[1754926634596,0.3323665,120370.0,120360.0,0.1680131]
[1754926634794,1.1631665,120370.0,120360.0,0.1680131]
[1754926634992,1.1641665,120370.0,120360.0,0.1680131]
[1754926635203,0.3333665,120370.0,120360.0,0.5288131]
[1754926635396,1.0810737,120370.0,120360.0,0.5288131]
[1754926635797,0.1671809,120370.0,120360.0,0.5288131]
[1754926636101,0.9987809,120370.0,120360.0,0.5288131]
[1754926636404,0.1681809,120370.0,120360.0,0.1680131]
[1754926637105,0.9150102,120370.0,120360.0,0.6287131]
[1754926637506,0.0850902,120370.0,120360.0,0.6287131]
[1754926637697,0.9148102,120370.0,120360.0,0.6287131]
[1754926638297,0.0850902,120370.0,120360.0,0.6287131]
[1754926638507,0.9143302,120370.0,120360.0,0.6287131]
[1754926638694,0.98184203,120370.0,120360.0,0.6287131]
[1754926639300,0.06951183,120370.0,120360.0,1.07324972]
[1754926639506,0.89811183,120370.0,120360.0,0.6287131]
[1754926639708,0.06951183,120370.0,120360.0,1.07324972]
[1754926639912,0.15259803,120370.0,120360.0,1.07324972]
[1754926640503,0.89759183,120370.0,120360.0,1.07324972]
[1754926640715,0.89659183,120370.0,120360.0,1.07324972]
[1754926640901,0.06851183,120370.0,120360.0,1.07324972]
[1754926641205,0.89539183,120370.0,120360.0,1.07324972]
[1754926641911,0.89539183,120370.0,120360.0,0.6287131]
[1754926642110,0.89451183,120370.0,120360.0,0.6287131]
[1754926642313,0.06751183,120370.0,120360.0,0.6287131]
[1754926642507,0.827,120370.0,120360.0,0.6287131]
[1754926642704,0.06714635,120370.0,120360.0,1.32252452]
[1754926642901,0.0001,120380.0,120370.0,0.0830862]
[1754926643107,0.0001,120390.0,120380.0,0.0830793]
[1754926643415,1.7933273,120400.0,120390.0,0.0830724]
[1754926643612,2.6199473,120400.0,120390.0,0.1448224]
[1754926643811,2.5368762,120400.0,120390.0,0.1680924]
[1754926644313,1.18322,120400.0,120390.0,0.1680924]
[1754926644811,2.01306,120400.0,120390.0,0.2679924]
[1754926645013,2.02127496,120400.0,120390.0,0.2679924]
[1754926645216,2.10434046,120400.0,120390.0,0.2679924]
[1754926645512,1.27850046,120400.0,120390.0,0.2679924]
[1754926645711,2.10438046,120400.0,120390.0,0.2679924]
[1754926645916,2.02175496,120400.0,120390.0,0.2679924]
[1754926646413,2.01975496,120400.0,120390.0,0.2679924]
[1754926646815,2.10282046,120400.0,120390.0,0.2679924]
[1754926647210,2.16953144,120400.0,120390.0,0.2679924]
[1754926647409,1.34321144,120400.0,120390.0,0.2679924]
[1754926647605,2.16913144,120400.0,120390.0,0.2679924]
[1754926647807,1.22604594,120400.0,120390.0,0.2679924]
[1754926648008,1.22604594,120400.0,120390.0,0.6287924]
[1754926648414,1.21783098,120400.0,120390.0,0.6287924]
[1754926648711,2.04311098,120400.0,120390.0,0.6287924]
[1754926649210,2.04311098,120400.0,120390.0,1.07332902]
[1754926649514,2.12417648,120400.0,120390.0,0.6287924]
[1754926649708,2.12425648,120400.0,120390.0,0.6287924]
[1754926650309,2.12425648,120400.0,120390.0,0.2679924]
[1754926650510,1.29889648,120400.0,120390.0,0.6287924]
[1754926650713,2.12401648,120400.0,120390.0,0.6287924]
[1754926651116,2.13227446,120400.0,120390.0,0.6287924]
[1754926651315,2.13151446,120400.0,120390.0,0.6287924]
[1754926651820,2.12325648,120400.0,120390.0,0.6287924]
[1754926652113,1.29889648,120400.0,120390.0,0.6287924]
[1754926652418,2.12325648,120400.0,120390.0,0.6287924]
[1754926653510,1.29889648,120400.0,120390.0,0.5790824]
[1754926653713,2.1042331,120400.0,120390.0,0.1]
[1754926653917,2.9278731,120400.0,120390.0,0.1]
[1754926654214,1.29889648,120400.0,120390.0,0.1830724]
[1754926654410,2.12277648,120400.0,120390.0,0.2337824]
[1754926654612,2.12277648,120400.0,120390.0,0.2670224]
[1754926654820,2.12333648,120400.0,120390.0,0.18395]
[1754926655218,2.12333648,120400.0,120390.0,0.13324]
[1754926655422,2.12333648,120400.0,120390.0,0.1950324]
[1754926655621,2.12333648,120400.0,120390.0,0.6278224]
[1754926655821,2.12433648,120400.0,120390.0,0.6278224]
[1754926656218,8e-08,120400.0,120390.0,1.25478902]
[1754926656415,8e-08,120400.0,120390.0,1.28847902]
[1754926656616,0.0001,120410.0,120400.0,0.0830655]
[1754926656823,0.04079,120420.0,120410.0,0.0830586]
[1754926657122,0.90013,120420.0,120410.0,0.5279086]
[1754926658118,0.90213,120420.0,120410.0,0.6278086]
[1754926658523,0.14464827,120420.0,120410.0,0.6278086]
[1754926658727,0.06915827,120420.0,120410.0,1.07234522]
[1754926659125,0.89455827,120420.0,120410.0,1.07234522]
[1754926659426,0.89455827,120420.0,120410.0,1.23844122]
[1754926659614,0.06915827,120420.0,120410.0,1.23844122]
[1754926660019,0.89643827,120420.0,120410.0,1.23844122]
[1754926660325,0.89643827,120420.0,120410.0,0.7939046]
[1754926660719,0.89715827,120420.0,120410.0,1.07234522]
[1754926660923,0.10182827,120420.0,120410.0,1.07234522]
[1754926661318,0.93034827,120420.0,120410.0,1.07234522]
[1754926661528,0.89867827,120420.0,120410.0,1.07234522]
[1754926662019,0.89867827,120420.0,120410.0,0.6278086]
[1754926662219,0.07015827,120420.0,120410.0,1.07234522]
[1754926662423,0.93046827,120420.0,120410.0,1.07234522]
[1754926663128,0.89879827,120420.0,120410.0,1.07234522]
[1754926664027,0.07015827,120420.0,120410.0,1.07234522]
[1754926664215,0.89999827,120420.0,120410.0,1.07234522]
[1754926665520,2.39999827,120420.0,120410.0,1.07234522]
[1754926665923,1.57015827,120420.0,120410.0,1.07234522]
[1754926666617,1.51052647,120420.0,120410.0,1.07234522]
[1754926666824,7e-08,120420.0,120410.0,1.23844122]
[1754926667419,7e-08,120420.0,120410.0,2.06712122]
[1754926668432,7e-08,120420.0,120410.0,2.06672122]
[1754926668818,7e-08,120420.0,120410.0,1.6221846]
[1754926669024,7e-08,120420.0,120410.0,2.06672122]
[1754926670729,7e-08,120420.0,120410.0,2.06768122]
[1754926671231,7e-08,120420.0,120410.0,1.23844122]
[1754926671531,7e-08,120420.0,120410.0,2.06768122]
[1754926671730,0.04136367,120430.0,120410.0,1.40445382]
[1754926671929,0.01703221,120450.0,120410.0,1.40445382]
[1754926671930,0.05772221,120450.0,120440.0,0.0830378]
[1754926672120,0.8294,120450.0,120440.0,0.5277878]
[1754926672425,1.40616355,120470.0,120460.0,0.0830239]
[1754926672628,2.23568355,120470.0,120460.0,0.4438239]
[1754926672932,2.27689355,120470.0,120460.0,0.4438239]
[1754926673231,2.27689355,120470.0,120460.0,0.4439239]
[1754926673621,1.44685355,120470.0,120460.0,0.4439239]
[1754926673919,2.27697355,120470.0,120460.0,0.4439239]
[1754926674120,2.27697355,120470.0,120460.0,0.4499239]
[1754926674427,3.08467017,120470.0,120460.0,0.0891239]
[1754926674624,0.0830241,120460.0,120450.0,0.2490808]
[1754926674825,1.39484072,120460.0,120450.0,0.2490808]
[1754926675024,0.9882241,120460.0,120450.0,0.2490808]
[1754926675620,0.90488,120460.0,120450.0,0.2490808]
[1754926675926,0.22206984,120460.0,120450.0,0.2491808]
[1754926676126,1.00326984,120460.0,120450.0,0.2491808]
[1754926676322,1.00326984,120460.0,120450.0,0.2541808]
[1754926676726,1.00326984,120460.0,120450.0,0.2571808]
[1754926677826,1.00266984,120460.0,120450.0,0.2571808]
[1754926678026,0.17038984,120460.0,120450.0,0.2571808]
[1754926678223,1.85780646,120460.0,120450.0,0.0081]
[1754926678428,0.0830309,120450.0,120440.0,0.2491094]
[1754926678622,0.9181709,120450.0,120440.0,0.2491094]
[1754926678827,0.83502,120450.0,120440.0,0.2491094]
[1754926679024,0.83502,120450.0,120440.0,0.2795094]
[1754926679226,0.9180509,120450.0,120440.0,0.2795094]
[1754926679631,0.9179309,120450.0,120440.0,0.2855094]
[1754926679821,0.9179309,120450.0,120440.0,0.2025716]
[1754926680019,0.9179309,120450.0,120440.0,0.1751716]
[1754926680432,0.9177709,120450.0,120440.0,0.1751716]
[1754926680825,0.0862509,120450.0,120440.0,0.5359716]
[1754926681029,0.00322,120450.0,120440.0,1.11080822]
[1754926681234,0.8867,120450.0,120440.0,1.14338822]
[1754926682033,0.0549,120450.0,120440.0,1.14338822]
[1754926682333,0.03014,120450.0,120440.0,1.22642602]
[1754926682632,0.86162,120450.0,120440.0,0.7818894]
[1754926682833,0.86162,120450.0,120440.0,1.14831602]
[1754926683034,0.86162,120450.0,120440.0,1.24821602]
[1754926683328,0.88628,120450.0,120440.0,0.8036794]
[1754926683529,0.89428,120450.0,120440.0,1.23921602]
[1754926683736,0.86962,120450.0,120440.0,1.23921602]
[1754926684034,0.8923,120450.0,120440.0,1.23921602]
[1754926684436,0.9753309,120450.0,120440.0,1.23921602]
[1754926684932,0.8923,120450.0,120440.0,1.23921602]
[1754926685128,0.86838,120450.0,120440.0,1.23921602]
[1754926685533,0.9514109,120450.0,120440.0,1.23921602]
[1754926686029,0.86838,120450.0,120440.0,1.23921602]
[1754926686427,0.9514108,120450.0,120440.0,1.23921602]
[1754926686936,1.6458308,120450.0,120440.0,0.7946794]
[1754926687236,2.4755908,120450.0,120440.0,0.7946794]
[1754926687830,2.4755908,120450.0,120440.0,0.3825794]
[1754926688030,1.6458308,120450.0,120440.0,0.2660716]
[1754926688232,2.45116742,120450.0,120440.0,0.1]
[1754926688436,2.0066308,120450.0,120440.0,0.1]
[1754926688741,3.28072742,120450.0,120440.0,0.1830377]
[1754926689041,2.0066308,120450.0,120440.0,0.1830377]
[1754926689239,2.8360308,120450.0,120440.0,0.1830377]
[1754926690739,2.0066308,120450.0,120440.0,0.1830377]
[1754926691039,2.8358308,120450.0,120440.0,0.1830377]
[1754926692130,2.45116742,120450.0,120440.0,0.0711]
[1754926692336,2.66721542,120450.0,120440.0,0.06986]
[1754926692539,3.49481542,120450.0,120440.0,0.06986]
[1754926693034,2.66721542,120450.0,120440.0,0.06986]
[1754926693240,3.49529542,120450.0,120440.0,0.06986]
[1754926693542,3.49529542,120450.0,120440.0,0.06996]
[1754926693740,2.66721542,120450.0,120440.0,0.06996]
[1754926693936,3.0472788,120450.0,120440.0,0.07096]
[1754926694239,3.48681542,120450.0,120440.0,0.07096]
[1754926694441,3.48897542,120450.0,120440.0,0.07096]
[1754926695038,2.66121542,120450.0,120440.0,0.07096]
[1754926695339,3.48865542,120450.0,120440.0,0.07096]
[1754926695544,2.0006308,120450.0,120440.0,0.07096]
[1754926695746,2.44516742,120450.0,120440.0,0.07096]
[1754926696042,3.43853542,120450.0,120440.0,0.07096]
[1754926697044,3.43837542,120450.0,120440.0,0.07096]
[1754926697344,3.43459542,120450.0,120440.0,0.07096]
[1754926697532,2.9900588,120450.0,120440.0,0.07091072]
[1754926697737,3.43459542,120450.0,120440.0,0.07091072]
[1754926698038,2.60799542,120450.0,120440.0,0.07091072]
[1754926698240,3.43443542,120450.0,120440.0,0.07091072]
[1754926698446,3.57233542,120450.0,120440.0,0.07091072]
[1754926698636,3.43443542,120450.0,120440.0,0.07091072]
[1754926699446,3.43395542,120450.0,120440.0,0.07091072]
[1754926699647,1.9974108,120450.0,120440.0,0.07091072]
[1754926699838,2.8228108,120450.0,120440.0,0.07091072]
[1754926700744,2.8228108,120450.0,120440.0,0.16562842]
[1754926701048,2.8228108,120450.0,120440.0,0.21692842]
[1754926701248,1.9974108,120450.0,120440.0,0.21692842]
[1754926701450,1.9974108,120450.0,120440.0,0.23871842]
[1754926701650,2.8221708,120450.0,120440.0,0.23871842]
[1754926702147,1.9974108,120450.0,120440.0,0.23871842]
[1754926702346,2.8217708,120450.0,120440.0,0.23871842]
[1754926703051,2.8216108,120450.0,120440.0,0.23871842]
[1754926703351,2.8216108,120450.0,120440.0,0.16562842]
[1754926703853,1.9974108,120450.0,120440.0,0.16562842]
[1754926704056,1.9974108,120450.0,120440.0,0.19820842]
[1754926704250,2.8208108,120450.0,120440.0,0.21692842]
[1754926704647,1.6366108,120450.0,120440.0,0.23871842]
[1754926704849,1.502,120450.0,120440.0,1.04405504]
[1754926705147,2.32524,120450.0,120440.0,1.04405504]